[Event "57th Biel Festival MTO 2024"]
[White "Federer,Colin"]
[Black "Tkhoruk,Roman"]
[Site "Biel"]
[Round "5.52"]
[Annotator "RC"]
[Result "1-0"]
[Date "2024.07.19"]
[WhiteElo "2187"]
[BlackElo "1944"]
[PlyCount "93"]
[TimeControl "60"]

1. e4 {[%emt 0:0:4]} c6 {[%emt 0:0:6]} 2. Nc3 {[%emt 0:0:6]} d5 {[%emt 0:0:10]} 3. Nf3 {[%emt 0:0:3]} dxe4 {[%emt 0:0:56]} 4. Nxe4 {[%emt 0:0:5]} Bf5 {[%emt 0:1:24]} 5. Ng3 {[%emt 0:0:16]} Bg4 {[%emt 0:1:4]} 6. h3 {[%emt 0:0:30]} Bxf3 {[%emt 0:0:22]} 7. Qxf3 {[%emt 0:0:5]} e6 {[%emt 0:0:11]} 8. c3 {[%emt 0:4:0]} Nd7 {[%emt 0:1:0]} 9. d4 {[%emt 0:0:36]} Ngf6 {[%emt 0:1:19]} 10. Bd3 {[%emt 0:0:30]} h6 {[%emt 0:1:17]} 11. O-O {[%emt 0:0:28]} Be7 {[%emt 0:1:1]} 12. Re1 {[%emt 0:1:3]} O-O {[%emt 0:1:4]} 13. Bf4 {[%emt 0:12:49]} Qb6 {[%emt 0:2:11]} 14. Ne4 {[%emt 0:2:59]} Nxe4 {[%emt 0:1:13]} 15. Rxe4 {[%emt 0:0:59]} Nf6 {[%emt 0:0:22]} 16. Bxh6 {[%emt 0:11:11]} gxh6 {[%emt 0:8:52]} 17. Qg3+ {[%emt 0:1:19]} Kh8 {[%emt 0:1:5]} 18. Rh4 {[%emt 0:0:54]} Ng8 {[%emt 0:1:1]} 19. Qe5+ {[%emt 0:9:51]} f6 {[%emt 0:0:8]} 20. Qxe6 {[%emt 0:0:44]} Qc7 {[%emt 0:14:8]} 21. Qe3 {[%emt 0:12:8]} Bd6 {[%emt 0:25:27]} 22. Rxh6+ {[%emt 0:2:44]} Nxh6 {[%emt 0:0:10]} 23. Qxh6+ {[%emt 0:0:5]} Kg8 {[%emt 0:0:11]} 24. Bc4+ {[%emt 0:0:16]} Rf7 {[%emt 0:0:6]} 25. Re1 {[%emt 0:4:6]} Bf8 {[%emt 0:7:26]} 26. Qxf6 {[%emt 0:1:30]} Bg7 {[%emt 0:0:54]} 27. Re7 {[%emt 0:1:26]} Bxf6 {[%emt 0:5:10]} 28. Bxf7+ {[%emt 0:0:6]} Kf8 {[%emt 0:0:14]} 29. Rxc7 {[%emt 0:0:4]} Rb8 {[%emt 0:1:2]} 30. Be6 {[%emt 0:0:30]} Be7 {[%emt 0:1:47]} 31. Rc8+ {[%emt 0:0:12]} Rxc8 {[%emt 0:0:27]} 32. Bxc8 {[%emt 0:0:5]} b6 {[%emt 0:0:17]} 33. f4 {[%emt 0:0:42]} Kg7 {[%emt 0:0:34]} 34. Kf2 {[%emt 0:0:4]} Kf6 {[%emt 0:0:24]} 35. g4 {[%emt 0:0:5]} Bd6 {[%emt 0:0:33]} 36. Kf3 {[%emt 0:0:15]} c5 {[%emt 0:0:30]} 37. d5 {[%emt 0:0:9]} Kg6 {[%emt 0:0:20]} 38. g5 {[%emt 0:0:11]} b5 {[%emt 0:0:24]} 39. Kg4 {[%emt 0:0:5]} b4 {[%emt 0:0:46]} 40. cxb4 {[%emt 0:0:9]} cxb4 {[%emt 0:0:10]} 41. b3 {[%emt 0:50:4]} a6 {[%emt 0:50:14]} 42. f5+ {[%emt 0:0:4]} Kf7 {[%emt 0:0:36]} 43. Be6+ {[%emt 0:0:7]} Kg7 {[%emt 0:1:18]} 44. f6+ {[%emt 0:0:4]} Kg6 {[%emt 0:0:54]} 45. h4 {[%emt 0:0:5]} a5 {[%emt 0:0:44]} 46. h5+ {[%emt 0:0:7]} Kh7 {[%emt 0:0:26]} 47. g6+ {[%emt 0:0:3]} 1-0

[Event "57th Biel Festival MTO 2024"]
[White "Hornung,Hans"]
[Black "Malli,Suvirr"]
[Site "Biel"]
[Round "5.53"]
[Annotator "RC"]
[Result "1-0"]
[Date "2024.07.19"]
[WhiteElo "2009"]
[BlackElo "2147"]
[PlyCount "69"]
[TimeControl "60"]

1. Nf3 {[%emt 0:0:10]} d5 {[%emt 0:0:12]} 2. d4 {[%emt 0:0:14]} Nf6 {[%emt 0:0:5]} 3. c4 {[%emt 0:0:6]} c6 {[%emt 0:0:7]} 4. e3 {[%emt 0:0:26]} Bf5 {[%emt 0:0:6]} 5. Nc3 {[%emt 0:0:15]} e6 {[%emt 0:0:7]} 6. Nh4 {[%emt 0:0:17]} Be4 {[%emt 0:0:8]} 7. f3 {[%emt 0:0:18]} Bg6 {[%emt 0:0:7]} 8. Qb3 {[%emt 0:1:9]} Qc7 {[%emt 0:0:20]} 9. Bd2 {[%emt 0:1:0]} Be7 {[%emt 0:0:15]} 10. Nxg6 {[%emt 0:4:14]} hxg6 {[%emt 0:0:27]} 11. O-O-O {[%emt 0:2:36]} dxc4 {[%emt 0:0:11]} 12. Bxc4 {[%emt 0:0:16]} b5 {[%emt 0:0:19]} 13. Be2 {[%emt 0:1:21]} a5 {[%emt 0:0:28]} 14. Qc2 {[%emt 0:4:7]} Qb7 {[%emt 0:1:38]} 15. e4 {[%emt 0:7:36]} O-O {[%emt 0:6:18]} 16. g4 {[%emt 0:15:11]} Na6 {[%emt 0:3:11]} 17. Bf4 {[%emt 0:4:54]} Rfc8 {[%emt 0:12:48]} 18. Kb1 {[%emt 0:2:28]} Nc7 {[%emt 0:10:29]} 19. h4 {[%emt 0:1:31]} Nd7 {[%emt 0:6:6]} 20. g5 {[%emt 0:4:27]} a4 {[%emt 0:23:47]} 21. h5 {[%emt 0:3:12]} e5 {[%emt 0:1:34]} 22. hxg6 {[%emt 0:13:25]} fxg6 {[%emt 0:5:9]} 23. dxe5 {[%emt 0:3:8]} Ne6 {[%emt 0:0:27]} 24. Qd2 {[%emt 0:3:52]} Rd8 {[%emt 0:4:31]} 25. Nd5 {[%emt 0:5:16]} cxd5 {[%emt 0:1:49]} 26. exd5 {[%emt 0:0:12]} Nb6 {[%emt 0:2:47]} 27. d6 {[%emt 0:1:42]} Bf8 {[%emt 0:3:29]} 28. Bd3 {[%emt 0:5:33]} Nc4 {[%emt 0:24:44]} 29. Qh2 {[%emt 0:3:20]} Nxf4 {[%emt 0:0:29]} 30. Qxf4 {[%emt 0:1:0]} Nxe5 {[%emt 0:2:24]} 31. Qxe5 {[%emt 0:1:12]} Rxd6 {[%emt 0:0:25]} 32. Be4 {[%emt 0:2:16]} Qd7 {[%emt 0:0:57]} 33. Rxd6 {[%emt 0:1:36]} Bxd6 {[%emt 0:0:9]} 34. Bd5+ {[%emt 0:1:38]} Kf8 {[%emt 0:0:4]} 35. Rh8# {[%emt 0:0:11]} 1-0

[Event "57th Biel Festival MTO 2024"]
[White "Kaiser,Elmar"]
[Black "Udelnov,Valentin"]
[Site "Biel"]
[Round "5.54"]
[Annotator "RC"]
[Result "0-1"]
[Date "2024.07.19"]
[WhiteElo "2116"]
[BlackElo "1965"]
[PlyCount "58"]
[TimeControl "60"]

1. e4 {[%emt 0:0:54]} e5 {[%emt 0:0:4]} 2. Nf3 {[%emt 0:0:32]} Nc6 {[%emt 0:0:6]} 3. Bb5 {[%emt 0:0:17]} g6 {[%emt 0:0:7]} 4. Bxc6 {[%emt 0:6:55]} dxc6 {[%emt 0:0:47]} 5. O-O {[%emt 0:0:9]} Bg7 {[%emt 0:0:12]} 6. b3 {[%emt 0:4:21]} c5 {[%emt 0:6:0]} 7. Bb2 {[%emt 0:1:8]} Qe7 {[%emt 0:8:19]} 8. Na3 {[%emt 0:4:45]} Bg4 {[%emt 0:11:26]} 9. h3 {[%emt 0:0:47]} h5 {[%emt 0:1:55]} 10. Qe2 {[%emt 0:4:26]} Bd7 {[%emt 0:9:48]} 11. Nc4 {[%emt 0:1:16]} f6 {[%emt 0:0:12]} 12. Rfe1 {[%emt 0:14:20]} Qe6 {[%emt 0:10:11]} 13. c3 {[%emt 0:1:23]} g5 {[%emt 0:2:47]} 14. d4 {[%emt 0:1:26]} g4 {[%emt 0:0:22]} 15. Nh4 {[%emt 0:0:40]} gxh3 {[%emt 0:3:22]} 16. Nf5 {[%emt 0:1:26]} Bf8 {[%emt 0:0:54]} 17. gxh3 {[%emt 0:5:53]} Ne7 {[%emt 0:4:4]} 18. dxe5 {[%emt 0:12:33]} fxe5 {[%emt 0:2:50]} 19. Qf3 {[%emt 0:5:13]} O-O-O {[%emt 0:2:27]} 20. Nce3 {[%emt 0:2:44]} Ng6 {[%emt 0:7:46]} 21. Rad1 {[%emt 0:1:50]} Bh6 {[%emt 0:1:6]} 22. Nd5 {[%emt 0:6:11]} Rdf8 {[%emt 0:1:59]} 23. Bc1 {[%emt 0:0:39]} Nh4 {[%emt 0:15:21]} 24. Qd3 {[%emt 0:4:41]} Bxc1 {[%emt 0:1:33]} 25. Rxc1 {[%emt 0:2:4]} Qg6+ {[%emt 0:1:54]} 26. Kf1 {[%emt 0:4:54]} Qg2+ {[%emt 0:0:22]} 27. Ke2 {[%emt 0:0:4]} Bxf5 {[%emt 0:1:37]} 28. exf5 {[%emt 0:2:43]} Nxf5 {[%emt 0:0:57]} 29. Rg1 {[%emt 0:2:28]} Nd4+ {[%emt 0:0:36]} 0-1

[Event "57th Biel Festival MTO 2024"]
[White "Liu,Kimberly"]
[Black "Tarini Goyal"]
[Site "Biel"]
[Round "5.55"]
[Annotator "RC"]
[Result "0-1"]
[Date "2024.07.19"]
[WhiteElo "1941"]
[BlackElo "2079"]
[PlyCount "88"]
[TimeControl "60"]

1. e4 {[%emt 0:1:52]} c6 {[%emt 0:3:50]} 2. d4 {[%emt 0:0:5]} d5 {[%emt 0:0:6]} 3. e5 {[%emt 0:0:2]} c5 {[%emt 0:1:12]} 4. Nf3 {[%emt 0:0:6]} Nc6 {[%emt 0:0:7]} 5. dxc5 {[%emt 0:0:14]} Bg4 {[%emt 0:0:42]} 6. c3 {[%emt 0:0:54]} e6 {[%emt 0:0:49]} 7. Be3 {[%emt 0:1:29]} a6 {[%emt 0:0:54]} 8. Bd4 {[%emt 0:3:2]} Nge7 {[%emt 0:5:7]} 9. h3 {[%emt 0:2:15]} Bxf3 {[%emt 0:1:1]} 10. Qxf3 {[%emt 0:5:13]} Nf5 {[%emt 0:0:39]} 11. Qd3 {[%emt 0:5:2]} Nfxd4 {[%emt 0:25:36]} 12. cxd4 {[%emt 0:0:27]} f6 {[%emt 0:11:17]} 13. Be2 {[%emt 0:3:11]} fxe5 {[%emt 0:3:12]} 14. O-O {[%emt 0:13:1]} Nxd4 {[%emt 0:5:24]} 15. Nd2 {[%emt 0:33:7]} Bxc5 {[%emt 0:6:34]} 16. Rac1 {[%emt 0:4:45]} Bb6 {[%emt 0:12:43]} 17. Bh5+ {[%emt 0:16:29]} g6 {[%emt 0:0:58]} 18. Bxg6+ {[%emt 0:3:24]} hxg6 {[%emt 0:0:16]} 19. Qxg6+ {[%emt 0:0:3]} Kd7 {[%emt 0:0:50]} 20. Qg7+ {[%emt 0:7:32]} Qe7 {[%emt 0:5:17]} 21. Qxe5 {[%emt 0:0:2]} Rhg8 {[%emt 0:0:31]} 22. Kh1 {[%emt 0:2:3]} Qg5 {[%emt 0:2:47]} 23. Qxg5 {[%emt 0:0:1]} Rxg5 {[%emt 0:0:7]} 24. Nb3 {[%emt 0:1:8]} Nxb3 {[%emt 0:4:56]} 25. axb3 {[%emt 0:0:1]} Rc8 {[%emt 0:0:11]} 26. Rc3 {[%emt 0:1:1]} d4 {[%emt 0:2:27]} 27. Rd1 {[%emt 0:2:23]} Rxc3 {[%emt 0:5:7]} 28. bxc3 {[%emt 0:0:1]} e5 {[%emt 0:0:11]} 29. g4 {[%emt 0:1:12]} Kc6 {[%emt 0:1:51]} 30. cxd4 {[%emt 0:1:14]} e4 {[%emt 0:4:34]} 31. Kg2 {[%emt 0:0:53]} Kd5 {[%emt 0:0:18]} 32. Kg3 {[%emt 0:0:56]} Bxd4 {[%emt 0:1:7]} 33. f4 {[%emt 0:1:23]} exf3 {[%emt 0:0:38]} 34. Kxf3 {[%emt 0:0:1]} Rg7 {[%emt 0:0:30]} 35. h4 {[%emt 0:0:25]} Rf7+ {[%emt 0:0:12]} 36. Kg3 {[%emt 0:0:9]} Ke4 {[%emt 0:0:12]} 37. h5 {[%emt 0:2:13]} Bf2+ {[%emt 0:3:26]} 38. Kh3 {[%emt 0:1:0]} Be3 {[%emt 0:1:38]} 39. Kh4 {[%emt 0:0:43]} Rf2 {[%emt 0:1:10]} 40. g5 {[%emt 0:0:51]} Rh2+ {[%emt 0:1:0]} 41. Kg4 {[%emt 0:2:47]} Rg2+ {[%emt 0:0:11]} 42. Kh4 {[%emt 0:1:56]} Bxg5+ {[%emt 0:7:45]} 43. Kh3 {[%emt 0:1:50]} Rd2 {[%emt 0:0:12]} 44. Rf1 {[%emt 0:1:42]} Bf4 {[%emt 0:1:13]} 0-1

[Event "57th Biel Festival MTO 2024"]
[White "Monteverde,Jonathan"]
[Black "Pinelli,Gian"]
[Site "Biel"]
[Round "5.57"]
[Annotator "RC"]
[Result "1/2-1/2"]
[Date "2024.07.19"]
[WhiteElo "2052"]
[BlackElo "1874"]
[PlyCount "72"]
[TimeControl "60"]

1. d4 {[%emt 0:0:5]} Nf6 {[%emt 0:0:6]} 2. c4 {[%emt 0:0:6]} g6 {[%emt 0:0:5]} 3. Nc3 {[%emt 0:0:5]} d5 {[%emt 0:0:7]} 4. Nf3 {[%emt 0:1:57]} Bg7 {[%emt 0:0:44]} 5. cxd5 {[%emt 0:0:51]} Nxd5 {[%emt 0:0:8]} 6. e4 {[%emt 0:0:8]} Nxc3 {[%emt 0:0:8]} 7. bxc3 {[%emt 0:0:3]} c5 {[%emt 0:0:26]} 8. Rb1 {[%emt 0:2:34]} O-O {[%emt 0:1:35]} 9. Be2 {[%emt 0:0:45]} cxd4 {[%emt 0:0:29]} 10. cxd4 {[%emt 0:0:35]} Qa5+ {[%emt 0:0:14]} 11. Bd2 {[%emt 0:0:22]} Qxa2 {[%emt 0:0:30]} 12. O-O {[%emt 0:0:20]} Bg4 {[%emt 0:0:26]} 13. Bg5 {[%emt 0:0:17]} h6 {[%emt 0:0:8]} 14. Be3 {[%emt 0:0:4]} Nc6 {[%emt 0:2:41]} 15. d5 {[%emt 0:0:33]} Ne5 {[%emt 0:7:54]} 16. Rxb7 {[%emt 0:2:14]} Qa3 {[%emt 0:9:21]} 17. Nxe5 {[%emt 0:9:50]} Bxe2 {[%emt 0:0:28]} 18. Qxe2 {[%emt 0:0:8]} Bxe5 {[%emt 0:0:13]} 19. Bxh6 {[%emt 0:6:53]} Rfb8 {[%emt 0:3:4]} 20. Rbb1 {[%emt 0:1:44]} Rb3 {[%emt 0:3:35]} 21. Rxb3 {[%emt 0:18:32]} Qxb3 {[%emt 0:0:9]} 22. f4 {[%emt 0:14:41]} Bd4+ {[%emt 0:2:33]} 23. Kh1 {[%emt 0:0:10]} Kh7 {[%emt 0:11:51]} 24. Bg5 {[%emt 0:4:48]} f6 {[%emt 0:2:59]} 25. Bh4 {[%emt 0:5:3]} Kg7 {[%emt 0:3:26]} 26. Bf2 {[%emt 0:6:37]} Bxf2 {[%emt 0:3:3]} 27. Qxf2 {[%emt 0:0:11]} Qc4 {[%emt 0:1:29]} 28. Re1 {[%emt 0:0:25]} a5 {[%emt 0:0:31]} 29. h3 {[%emt 0:6:23]} a4 {[%emt 0:0:27]} 30. Qb6 {[%emt 0:0:31]} Qc3 {[%emt 0:1:42]} 31. Re3 {[%emt 0:0:49]} Qc1+ {[%emt 0:2:31]} 32. Kh2 {[%emt 0:0:47]} a3 {[%emt 0:1:31]} 33. e5 {[%emt 0:20:52]} fxe5 {[%emt 0:12:20]} 34. Qb7 {[%emt 0:1:53]} Qxe3 {[%emt 0:14:57]} 35. Qxe7+ {[%emt 0:0:9]} Kh6 {[%emt 0:1:22]} 36. Qh4+ {[%emt 0:0:11]} Kg7 {[%emt 0:0:5]} 1/2-1/2

[Event "57th Biel Festival MTO 2024"]
[White "Saine,Zachary"]
[Black "Malli,Shiivesh Sunil"]
[Site "Biel"]
[Round "5.58"]
[Annotator "RC"]
[Result "1-0"]
[Date "2024.07.19"]
[WhiteElo "2035"]
[BlackElo "1916"]
[PlyCount "21"]
[TimeControl "60"]

1. e4 {[%emt 0:0:7]} d5 {[%emt 0:0:0]} 2. exd5 {[%emt 0:0:46]} Nf6 {[%emt 0:0:11]} 3. Nc3 {[%emt 0:0:30]} Nxd5 {[%emt 0:0:30]} 4. Bc4 {[%emt 0:0:30]} e6 {[%emt 0:3:38]} 5. Nf3 {[%emt 0:12:59]} Be7 {[%emt 0:0:30]} 6. O-O {[%emt 0:0:30]} O-O {[%emt 0:0:30]} 7. Re1 {[%emt 0:0:30]} Nxc3 {[%emt 0:0:30]} 8. bxc3 {[%emt 0:0:30]} b6 {[%emt 0:0:30]} 9. Ne5 {[%emt 0:0:30]} Bb7 {[%emt 0:46:24]} 10. d4 {[%emt 0:5:45]} c5 {[%emt 0:0:30]} 11. Qg4 {[%emt 0:0:30]} 1-0

[Event "57th Biel Festival MTO 2024"]
[White "Matsumura,Cocoro"]
[Black "Cordes,Jule"]
[Site "Biel"]
[Round "5.59"]
[Annotator "RC"]
[Result "1/2-1/2"]
[Date "2024.07.19"]
[WhiteElo "2032"]
[BlackElo "1900"]
[PlyCount "27"]
[TimeControl "60"]

1. e4 {[%emt 0:0:3]} e6 {[%emt 0:0:0]} 2. d4 {[%emt 0:0:0]} d5 {[%emt 0:0:0]} 3. e5 {[%emt 0:0:8]} c5 {[%emt 0:0:0]} 4. c3 {[%emt 0:0:30]} Nc6 {[%emt 0:0:0]} 5. Nf3 {[%emt 0:0:30]} Nh6 {[%emt 0:0:27]} 6. Bxh6 {[%emt 0:0:30]} gxh6 {[%emt 0:5:38]} 7. Bd3 {[%emt 0:20:0]} Qb6 {[%emt 0:0:30]} 8. Qd2 {[%emt 0:0:30]} Bd7 {[%emt 0:0:30]} 9. dxc5 {[%emt 0:0:30]} Qc7 {[%emt 0:0:30]} 10. Qf4 {[%emt 0:0:30]} Bg7 {[%emt 0:54:5]} 11. Bb5 {[%emt 0:2:9]} Nxe5 {[%emt 0:0:30]} 12. Bxd7+ {[%emt 0:0:30]} Kxd7 {[%emt 0:0:30]} 13. O-O {[%emt 0:0:30]} Rhg8 {[%emt 0:19:9]} 14. g3 {[%emt 0:26:17]} 1/2-1/2

[Event "57th Biel Festival MTO 2024"]
[White "Kheerthi Ganta"]
[Black "Krishnan,Ritvik"]
[Site "Biel"]
[Round "5.60"]
[Annotator "RC"]
[Result "1/2-1/2"]
[Date "2024.07.19"]
[WhiteElo "1987"]
[BlackElo "2297"]
[PlyCount "64"]
[TimeControl "60"]

1. d4 {[%emt 0:0:26]} Nf6 {[%emt 0:0:7]} 2. Nf3 {[%emt 0:0:27]} d5 {[%emt 0:0:7]} 3. e3 {[%emt 0:1:1]} c5 {[%emt 0:0:37]} 4. dxc5 {[%emt 0:0:23]} e6 {[%emt 0:0:0]} 5. b4 {[%emt 0:0:38]} a5 {[%emt 0:0:0]} 6. c3 {[%emt 0:0:39]} axb4 {[%emt 0:0:0]} 7. cxb4 {[%emt 0:0:9]} b6 {[%emt 0:0:7]} 8. Bb5+ {[%emt 0:0:31]} Bd7 {[%emt 0:0:7]} 9. Bxd7+ {[%emt 0:0:22]} Nbxd7 {[%emt 0:0:2]} 10. a4 {[%emt 0:0:59]} bxc5 {[%emt 0:0:7]} 11. b5 {[%emt 0:0:30]} Bd6 {[%emt 0:0:52]} 12. Bb2 {[%emt 0:1:9]} Qc7 {[%emt 0:1:8]} 13. Nbd2 {[%emt 0:0:30]} O-O {[%emt 0:5:27]} 14. O-O {[%emt 0:0:47]} h6 {[%emt 0:14:27]} 15. Qc2 {[%emt 0:1:7]} c4 {[%emt 0:9:27]} 16. Bc3 {[%emt 0:6:27]} e5 {[%emt 0:9:2]} 17. h3 {[%emt 0:6:59]} Nc5 {[%emt 0:5:58]} 18. a5 {[%emt 0:0:49]} Nd3 {[%emt 0:7:44]} 19. b6 {[%emt 0:3:18]} Qc6 {[%emt 0:1:3]} 20. Rfb1 {[%emt 0:1:14]} Nd7 {[%emt 0:7:26]} 21. Ne1 {[%emt 0:1:21]} Nxe1 {[%emt 0:7:32]} 22. Rxe1 {[%emt 0:0:11]} Nc5 {[%emt 0:1:9]} 23. Reb1 {[%emt 0:1:14]} Ra6 {[%emt 0:5:33]} 24. Nf3 {[%emt 0:0:46]} Re8 {[%emt 0:3:36]} 25. Qb2 {[%emt 0:2:39]} Na4 {[%emt 0:7:57]} 26. Qc2 {[%emt 0:3:1]} Nxc3 {[%emt 0:0:43]} 27. Qxc3 {[%emt 0:0:11]} Qc5 {[%emt 0:1:2]} 28. Ra4 {[%emt 0:1:0]} Qc6 {[%emt 0:5:0]} 29. Rba1 {[%emt 0:1:36]} f5 {[%emt 0:1:56]} 30. Nh4 {[%emt 0:2:45]} Rf8 {[%emt 0:2:44]} 31. Ng6 {[%emt 0:2:46]} Re8 {[%emt 0:0:47]} 32. Nh4 {[%emt 0:0:11]} Rf8 {[%emt 0:2:34]} 1/2-1/2

[Event "57th Biel Festival MTO 2024"]
[White "Pappier,Carlos"]
[Black "Hartmann,Wolfgang"]
[Site "Biel"]
[Round "5.61"]
[Annotator "RC"]
[Result "0-1"]
[Date "2024.07.19"]
[WhiteElo "2202"]
[BlackElo "1983"]
[PlyCount "122"]
[TimeControl "60"]

1. d4 {[%emt 0:0:5]} d5 {[%emt 0:0:11]} 2. c4 {[%emt 0:0:35]} e6 {[%emt 0:0:8]} 3. Nc3 {[%emt 0:0:27]} Nf6 {[%emt 0:0:12]} 4. cxd5 {[%emt 0:1:19]} Nxd5 {[%emt 0:0:52]} 5. e4 {[%emt 0:2:23]} Nxc3 {[%emt 0:0:18]} 6. bxc3 {[%emt 0:0:6]} c5 {[%emt 0:0:13]} 7. Nf3 {[%emt 0:2:3]} cxd4 {[%emt 0:0:16]} 8. cxd4 {[%emt 0:0:5]} Bb4+ {[%emt 0:0:6]} 9. Bd2 {[%emt 0:0:21]} Bxd2+ {[%emt 0:0:9]} 10. Qxd2 {[%emt 0:0:5]} O-O {[%emt 0:0:16]} 11. Bc4 {[%emt 0:3:6]} Nd7 {[%emt 0:2:8]} 12. O-O {[%emt 0:4:12]} b6 {[%emt 0:0:53]} 13. Rfe1 {[%emt 0:3:27]} Bb7 {[%emt 0:2:20]} 14. a4 {[%emt 0:3:39]} Nf6 {[%emt 0:18:10]} 15. Bd3 {[%emt 0:0:50]} Qe7 {[%emt 0:6:21]} 16. a5 {[%emt 0:2:50]} bxa5 {[%emt 0:16:26]} 17. Rxa5 {[%emt 0:0:54]} Rfc8 {[%emt 0:6:25]} 18. Bb1 {[%emt 0:40:33]} Qc7 {[%emt 0:11:41]} 19. Rc5 {[%emt 0:4:26]} Qd8 {[%emt 0:6:44]} 20. Qc2 {[%emt 0:4:19]} g6 {[%emt 0:12:52]} 21. Qc3 {[%emt 0:2:16]} a5 {[%emt 0:4:38]} 22. Nd2 {[%emt 0:6:40]} Rxc5 {[%emt 0:5:50]} 23. dxc5 {[%emt 0:0:46]} Rc8 {[%emt 0:0:49]} 24. h3 {[%emt 0:10:42]} Nd7 {[%emt 0:2:47]} 25. Nb3 {[%emt 0:0:29]} a4 {[%emt 0:1:38]} 26. Na5 {[%emt 0:3:35]} Nxc5 {[%emt 0:0:33]} 27. Qb4 {[%emt 0:0:23]} Ba6 {[%emt 0:2:8]} 28. Rc1 {[%emt 0:1:3]} Nd3 {[%emt 0:1:17]} 29. Rxc8 {[%emt 0:0:42]} Qxc8 {[%emt 0:0:10]} 30. Bxd3 {[%emt 0:0:45]} Qc1+ {[%emt 0:0:23]} 31. Kh2 {[%emt 0:0:23]} Qf4+ {[%emt 0:0:45]} 32. Kg1 {[%emt 0:0:20]} Qc1+ {[%emt 0:1:40]} 33. Kh2 {[%emt 0:0:6]} Qf4+ {[%emt 0:0:8]} 34. Kg1 {[%emt 0:0:6]} Bxd3 {[%emt 0:0:13]} 35. Qxa4 {[%emt 0:0:34]} Qc1+ {[%emt 0:0:26]} 36. Kh2 {[%emt 0:0:7]} Qf4+ {[%emt 0:0:23]} 37. Kg1 {[%emt 0:0:6]} Bxe4 {[%emt 0:0:56]} 38. Qc4 {[%emt 0:2:50]} Qe5 {[%emt 0:1:8]} 39. Qb4 {[%emt 0:9:3]} Qa1+ {[%emt 0:0:44]} 40. Kh2 {[%emt 0:0:6]} Qe5+ {[%emt 0:0:47]} 41. Kg1 {[%emt 0:50:55]} Qa1+ {[%emt 0:50:31]} 42. Kh2 {[%emt 0:0:11]} Bd5 {[%emt 0:0:6]} 43. Qc5 {[%emt 0:1:57]} Qe5+ {[%emt 0:0:0]} 44. Kg1 {[%emt 0:0:0]} h5 {[%emt 0:0:0]} 45. f3 {[%emt 0:0:0]} Qe1+ {[%emt 0:0:0]} 46. Kh2 {[%emt 0:0:0]} h4 {[%emt 0:0:0]} 47. Nc6 {[%emt 0:0:0]} Bxf3 {[%emt 0:0:0]} 48. gxf3 {[%emt 0:0:0]} Qg3+ {[%emt 0:0:0]} 49. Kh1 {[%emt 0:0:0]} Qxh3+ {[%emt 0:0:0]} 50. Kg1 {[%emt 0:0:0]} Qg3+ {[%emt 0:0:0]} 51. Kh1 {[%emt 0:0:0]} Qxf3+ {[%emt 0:0:0]} 52. Kg1 {[%emt 0:0:0]} h3 {[%emt 0:0:0]} 53. Ne7+ {[%emt 0:0:0]} Kh7 {[%emt 0:0:0]} 54. Qg5 {[%emt 0:0:0]} e5 {[%emt 0:0:0]} 55. Kh2 {[%emt 0:0:0]} e4 {[%emt 0:4:32]} 56. Qh4+ {[%emt 0:0:0]} Kg7 {[%emt 0:0:8]} 57. Qxh3 {[%emt 0:0:0]} Qf2+ {[%emt 0:3:20]} 58. Kh1 {[%emt 0:0:0]} e3 {[%emt 0:2:29]} 59. Nd5 {[%emt 0:0:0]} Qe1+ {[%emt 0:1:10]} 60. Kh2 {[%emt 0:0:0]} Qd2+ {[%emt 0:0:17]} 61. Qg2 {[%emt 0:0:2]} e2 {[%emt 0:15:51]} 0-1

[Event "57th Biel Festival MTO 2024"]
[White "Stefan,Iulia-Cristiana"]
[Black "Tellarini,Lorenzo"]
[Site "Biel"]
[Round "5.63"]
[Annotator "RC"]
[Result "1/2-1/2"]
[Date "2024.07.19"]
[WhiteElo "1953"]
[BlackElo "1953"]
[PlyCount "62"]
[TimeControl "60"]

1. d4 {[%emt 0:0:3]} Nf6 {[%emt 0:0:3]} 2. Nf3 {[%emt 0:0:7]} e6 {[%emt 0:0:21]} 3. Bg5 {[%emt 0:0:10]} d5 {[%emt 0:0:30]} 4. e3 {[%emt 0:0:59]} Be7 {[%emt 0:0:30]} 5. Nbd2 {[%emt 0:0:8]} O-O {[%emt 0:1:0]} 6. Bd3 {[%emt 0:0:10]} c5 {[%emt 0:3:9]} 7. c3 {[%emt 0:0:7]} Nc6 {[%emt 0:2:42]} 8. O-O {[%emt 0:1:1]} Qc7 {[%emt 0:6:53]} 9. Bf4 {[%emt 0:23:7]} Bd6 {[%emt 0:8:52]} 10. Bxd6 {[%emt 0:5:13]} Qxd6 {[%emt 0:0:13]} 11. dxc5 {[%emt 0:3:25]} Qxc5 {[%emt 0:4:37]} 12. e4 {[%emt 0:1:33]} Rd8 {[%emt 0:13:36]} 13. e5 {[%emt 0:15:32]} Ne4 {[%emt 0:7:35]} 14. Qe2 {[%emt 0:5:43]} Nxd2 {[%emt 0:3:29]} 15. Qxd2 {[%emt 0:1:14]} b6 {[%emt 0:3:49]} 16. Qe2 {[%emt 0:8:27]} Bb7 {[%emt 0:6:26]} 17. Rac1 {[%emt 0:2:24]} Rd7 {[%emt 0:3:26]} 18. Rfd1 {[%emt 0:1:18]} Rad8 {[%emt 0:1:3]} 19. Nd4 {[%emt 0:2:18]} Kh8 {[%emt 0:6:5]} 20. Bb5 {[%emt 0:12:30]} Rc7 {[%emt 0:7:42]} 21. Bxc6 {[%emt 0:10:13]} Bxc6 {[%emt 0:1:1]} 22. c4 {[%emt 0:3:59]} Be8 {[%emt 0:8:31]} 23. Nb3 {[%emt 0:0:42]} Qe7 {[%emt 0:2:22]} 24. cxd5 {[%emt 0:0:19]} Rxc1 {[%emt 0:0:35]} 25. Nxc1 {[%emt 0:0:14]} Rxd5 {[%emt 0:1:33]} 26. Rxd5 {[%emt 0:1:41]} exd5 {[%emt 0:0:7]} 27. Qe3 {[%emt 0:0:17]} Qc5 {[%emt 0:6:24]} 28. Qxc5 {[%emt 0:0:46]} bxc5 {[%emt 0:0:4]} 29. Nb3 {[%emt 0:0:6]} c4 {[%emt 0:0:55]} 30. Nd4 {[%emt 0:0:8]} Kg8 {[%emt 0:0:52]} 31. Kf1 {[%emt 0:0:6]} Bd7 {[%emt 0:1:31]} 1/2-1/2